bitfinex/quotes_ETHUSD_20241013
["timestamp","ask_amount","ask_price","bid_price","bid_amount"]
[1728807226834,1.27682754,2470.3,2470.1,3.0]
[1728807227044,1.27682754,2470.3,2470.2,0.30353313]
[1728807227230,1.27682754,2470.3,2470.1,3.0]
[1728807227655,1.27682754,2470.2,2470.1,3.0]
[1728807230551,1.27682754,2470.2,2470.1,3.30354853]
[1728807230861,1.27682754,2470.2,2470.1,3.60709199]
[1728807231637,1.27682754,2470.2,2470.1,0.60709199]
[1728807233173,1.27682754,2470.2,2470.1,3.60709199]
[1728807233938,1.27682754,2470.2,2470.1,7.65550199]
[1728807234140,0.85169079,2470.2,2470.1,3.60709199]
[1728807234477,0.85168906,2470.2,2470.1,3.30354853]
[1728807234771,1.27682754,2470.3,2470.1,3.60706949]
[1728807235089,1.27682754,2470.3,2470.2,0.30352096]
[1728807237487,1.35171267,2470.3,2470.2,0.30352096]
[1728807238258,1.35171267,2470.3,2470.1,3.30354853]
[1728807238482,0.85168564,2470.2,2470.1,3.30354853]
[1728807238769,0.9265034,2470.2,2470.1,3.60706792]
[1728807239313,1.3516453,2470.2,2470.1,3.60706792]
[1728807240198,0.92650725,2470.2,2470.1,3.60706792]
[1728807240416,0.92650725,2470.2,2470.1,3.30351939]
[1728807241600,0.07481776,2470.2,2470.1,3.30351939]
[1728807241890,0.85169235,2470.2,2470.1,3.30351939]
[1728807242090,0.92650858,2470.2,2470.1,3.30351939]
[1728807243391,0.92650548,2470.2,2470.1,3.30351939]
[1728807243689,0.07481623,2470.2,2470.1,3.30351939]
[1728807243896,1.27682754,2470.3,2470.1,3.30351939]
[1728807244091,1.27682754,2470.3,2470.2,0.30351939]
[1728807244693,1.27682754,2470.3,2470.2,0.3035241]
[1728807247912,1.27682754,2470.3,2470.2,0.43029167]
[1728807249908,2.77640386,2470.3,2470.2,0.43029167]
[1728807250203,1.27682754,2470.3,2470.2,0.43029167]
[1728807250411,2.77640386,2470.3,2470.2,0.43029167]
[1728807250612,5.13918326,2470.3,2470.2,0.12676757]
[1728807252511,5.2137469,2470.3,2470.2,0.12676757]
[1728807254899,4.4204469,2470.3,2470.2,0.12676757]
[1728807255124,2.71730006,2470.3,2470.2,0.12676757]
[1728807255277,4.4204469,2470.3,2470.2,0.12676757]
[1728807255781,4.4204469,2470.3,2470.2,0.12676875]
[1728807256615,2.71730006,2470.3,2470.2,0.12676875]
[1728807256921,4.4204469,2470.3,2470.2,0.12676875]
[1728807257124,2.71730006,2470.3,2470.2,0.12676875]
[1728807257326,4.4204469,2470.3,2470.2,0.12676875]
[1728807260312,4.4204469,2470.3,2470.0,0.7503]
[1728807260479,0.85162519,2470.1,2470.0,0.7503]
[1728807260679,0.85162519,2470.1,2470.0,1.05380337]
[1728807260916,0.92600093,2470.1,2470.0,1.05380337]
[1728807263179,0.92600093,2470.1,2470.0,1.05380751]
[1728807268631,0.92600093,2470.1,2470.0,1.05380119]
[1728807270626,0.92600093,2470.1,2470.0,0.30350119]
[1728807274602,0.92600093,2470.1,2470.0,0.3035018]
[1728807281897,0.92600093,2470.1,2469.9,7.0487]
[1728807282106,0.92600093,2470.1,2470.0,0.30349955]
[1728807283805,0.92600093,2470.1,2470.0,0.30350131]
[1728807290207,0.92600093,2470.1,2469.9,7.0487]
[1728807290527,0.92600093,2470.1,2470.0,0.30352059]
[1728807293654,0.92600093,2470.1,2470.0,4.35210059]
[1728807293857,0.92600093,2470.1,2470.0,7.35210059]
[1728807297764,0.92600093,2470.1,2470.0,7.35215025]
[1728807303169,0.92600093,2470.1,2470.0,7.04858]
[1728807303556,0.92600093,2470.1,2470.0,7.35214857]
[1728807303915,0.92600093,2470.1,2470.0,7.65571753]
[1728807310995,0.92600093,2470.1,2470.0,7.35214757]
[1728807314706,0.92600093,2470.1,2470.0,7.04858]
[1728807314911,0.92600093,2470.1,2470.0,7.35216526]
[1728807317005,0.92600093,2470.1,2470.0,7.04858]
[1728807317164,0.92600093,2470.1,2470.0,7.35217459]
[1728807317365,0.92600093,2470.1,2470.0,7.35218158]
[1728807320397,0.92600093,2470.1,2470.0,7.47895116]
[1728807321925,0.92600093,2470.1,2470.0,7.35218158]
[1728807322210,0.92600093,2470.1,2470.0,7.4789537]
[1728807325722,0.92600093,2470.1,2470.0,7.47897777]
[1728807329520,0.92600093,2470.1,2470.0,7.47898159]
[1728807330022,0.92600093,2470.1,2470.0,7.47898147]
[1728807332081,0.95402576,2470.1,2470.0,7.47898147]
[1728807333273,0.95402576,2470.1,2470.0,7.35221164]
[1728807333480,0.95402576,2470.1,2470.0,7.47898151]
[1728807336983,0.95402576,2470.1,2470.0,7.35221164]
[1728807337186,0.95402576,2470.1,2470.0,7.47904558]
[1728807340769,0.95402576,2470.1,2470.0,7.17534967]
[1728807340975,0.95402576,2470.1,2470.0,7.47909876]
[1728807344498,0.95402576,2470.1,2470.0,7.04858]
[1728807344645,0.95402576,2470.1,2470.0,7.47910061]
[1728807345091,0.95402576,2470.1,2470.0,8.27400061]
[1728807348297,0.95402576,2470.1,2470.0,7.84348]
[1728807348511,0.95402576,2470.1,2470.0,8.2739961]
[1728807349815,0.95402576,2470.1,2470.0,11.18362257]
[1728807349816,0.10240057,2470.1,2470.0,11.18362257]
[1728807349978,0.85162519,2470.4,2470.0,11.6074615]
[1728807350184,0.85162519,2470.4,2470.3,7.87269]
[1728807350368,0.85162519,2470.4,2470.3,8.17643714]
[1728807350686,0.85162519,2470.5,2470.4,7.87252]
[1728807351208,1.27743778,2470.6,2470.5,7.87236]
[1728807351209,0.85162519,2470.6,2470.5,7.87236]
[1728807351380,0.85162519,2470.8,2470.5,7.87236]
[1728807351573,0.85162519,2471.0,2470.9,4.0471]
[1728807351784,0.85162519,2471.0,2470.9,7.0471]
[1728807352107,0.85162519,2471.1,2471.0,4.04694]
[1728807352607,0.85162519,2471.2,2471.0,4.04694]
[1728807353015,0.85162519,2471.1,2471.0,4.04694]
[1728807353223,1.27743778,2471.3,2471.0,4.04694]
[1728807353224,0.85162519,2471.2,2471.0,4.04694]
[1728807353375,0.85162519,2471.1,2471.0,4.04694]
[1728807353723,0.85162519,2471.2,2471.0,4.04694]
[1728807354719,0.85162519,2471.3,2471.0,4.04694]
[1728807355490,0.85162519,2471.3,2471.1,4.04674]
[1728807356327,0.85162519,2471.3,2471.2,4.04661]
[1728807356618,0.85162519,2471.4,2471.2,4.04661]
[1728807356826,0.85162519,2471.5,2471.2,4.04661]
[1728807357511,0.09566942,2471.4,2471.3,4.04645]
[1728807358244,0.09578796,2471.4,2471.3,4.04645]
[1728807358419,1.68142519,2471.6,2471.3,4.04645]
[1728807358593,0.09578796,2471.4,2471.3,4.04645]
[1728807358794,1.68142519,2471.6,2471.3,4.04645]
[1728807358997,0.095889,2471.5,2471.3,4.04645]
[1728807359324,0.095889,2471.5,2471.4,4.04628]
[1728807359535,0.095889,2471.5,2471.3,4.04645]
[1728807360353,0.095889,2471.5,2471.1,4.87131]
[1728807360558,0.095889,2471.5,2471.2,4.04659]
[1728807364528,0.095889,2471.5,2471.1,4.87131]
[1728807364868,0.8298,2471.4,2471.0,3.0]
[1728807365144,0.92563316,2471.4,2471.0,3.0]
[1728807370219,1.507974,2471.4,2471.0,3.0]
[1728807371627,1.507974,2471.4,2471.0,7.04693]
[1728807371826,0.92563316,2471.4,2471.0,3.0]
[1728807372769,0.92563316,2471.4,2471.0,7.04692]
[1728807373130,0.92563316,2471.4,2471.0,3.0]
[1728807373331,0.92563316,2471.4,2471.1,4.04677]
[1728807373768,0.92563316,2471.4,2471.1,8.09344]
[1728807374279,0.92563316,2471.4,2471.1,4.04667]
[1728807374570,0.09583316,2471.4,2471.2,4.0465]
[1728807374928,0.7897,2471.6,2471.2,4.0465]
[1728807375129,0.09533797,2471.3,2471.2,4.0465]
[1728807375335,0.7897,2471.6,2471.2,4.0465]
[1728807375539,0.09533797,2471.3,2471.2,4.865]
[1728807375780,0.7897,2471.6,2471.2,6.1752889]
[1728807375940,0.09533797,2471.3,2471.2,6.1752889]
[1728807376143,0.7897,2471.6,2471.3,4.04643]
[1728807376336,0.7897,2471.8,2471.3,4.04643]
[1728807378254,0.7897,2471.8,2471.3,4.04634]
[1728807378468,0.7897,2471.8,2471.4,4.66379289]
[1728807379343,0.7897,2471.8,2471.4,3.61751289]
[1728807379576,7.31,2471.9,2471.6,4.04595]
[1728807380021,7.31,2471.9,2471.5,4.86452]
[1728807380490,1.0747,2472.0,2471.6,4.04594]
[1728807381151,1.0747,2472.0,2471.5,4.86452]
[1728807382460,1.0747,2472.0,2471.5,9.86335029]
[1728807382665,1.0747,2472.0,2471.5,5.81733029]
[1728807382859,1.0747,2472.0,2471.5,9.86335029]
[1728807383060,1.0747,2472.0,2471.5,5.81733029]
[1728807384653,0.285,2472.0,2471.9,7.04547]
[1728807384852,0.285,2472.0,2471.9,8.236428]
[1728807387703,0.37447038,2472.0,2471.9,8.236428]
[1728807392276,0.37447038,2472.0,2471.9,4.190958]
[1728807397214,0.37447038,2472.0,2471.9,1.190958]
[1728807397516,0.37447038,2472.0,2471.7,3.0]
[1728807401494,0.37447038,2472.0,2471.5,8.78906029]
[1728807401690,0.37447038,2472.0,2471.7,3.0]
[1728807404026,0.37447038,2472.0,2471.7,7.04576]
[1728807404188,0.37447038,2472.0,2471.8,1.11383103]
[1728807407989,0.37447038,2472.0,2471.9,3.0]
[1728807409514,0.37447038,2472.0,2471.9,7.04547]
[1728807420722,0.285,2472.0,2471.9,7.04547]
[1728807421331,0.285,2472.0,2471.9,7.17213257]
[1728807421534,0.285,2472.0,2471.9,7.22724336]
[1728807421719,0.36495433,2472.0,2471.9,8.30436691]
[1728807422041,0.285,2472.0,2471.9,8.37591851]
[1728807422243,0.285,2472.0,2471.9,9.44303655]
[1728807423062,0.285,2472.0,2471.9,9.44303121]
[1728807427452,0.36497621,2472.0,2471.9,9.44303121]
[1728807430569,0.36497621,2472.0,2471.9,9.31636904]
[1728807430753,0.36497621,2472.0,2471.9,9.99302477]
[1728807430956,0.285,2472.0,2471.9,9.99302477]
[1728807431187,0.285,2472.0,2471.9,10.84313267]
[1728807431545,0.285,2472.0,2471.9,11.26454154]
[1728807431959,0.285,2472.0,2471.9,9.99302477]
[1728807432355,0.285,2472.0,2471.9,11.26264051]
[1728807432555,0.285,2472.0,2471.9,9.99302477]
[1728807432754,0.285,2472.0,2471.9,11.26258786]
[1728807432948,0.285,2472.0,2471.9,9.99302477]
[1728807433300,0.285,2472.0,2471.9,11.26230893]
[1728807434451,0.285,2472.0,2471.9,11.1356532]
[1728807434745,0.285,2472.0,2471.9,11.26231687]
[1728807437325,0.285,2472.0,2471.9,11.37211941]
[1728807438011,0.285,2472.0,2471.9,10.10283525]
[1728807438174,0.285,2472.0,2471.9,11.37211941]
[1728807438509,0.285,2472.0,2471.9,10.10283291]
[1728807438694,0.285,2472.0,2471.9,10.94838616]
[1728807439032,0.285,2472.0,2471.9,10.10265439]
[1728807439257,0.285,2472.0,2471.9,9.97602064]
[1728807439394,0.285,2472.0,2471.9,10.94813247]
[1728807440714,0.285,2472.0,2471.9,10.94802354]
[1728807441018,0.285,2472.0,2471.9,11.37193837]
[1728807444324,0.285,2472.0,2471.9,10.10265421]
[1728807445314,0.285,2472.0,2471.9,11.37193837]
[1728807445742,0.285,2472.0,2471.9,10.10265421]
[1728807446241,0.285,2472.0,2471.9,10.94759514]
[1728807447048,0.285,2472.0,2471.9,10.10265421]
[1728807447588,0.285,2472.0,2471.9,11.37193837]
[1728807447944,0.285,2472.0,2471.9,10.10265421]
[1728807449186,0.285,2472.0,2471.9,11.37193837]
[1728807450078,0.285,2472.0,2471.9,10.10265421]
[1728807450385,0.285,2472.0,2471.9,11.37193837]
[1728807453906,0.285,2472.0,2471.9,11.37193292]
[1728807457391,0.285,2472.0,2471.9,11.2453048]
[1728807457572,0.285,2472.0,2471.9,11.37196989]
[1728807461271,0.285,2472.0,2471.9,11.3720242]
[1728807461463,0.285,2472.0,2471.9,10.10274004]
[1728807462479,0.285,2472.0,2471.9,11.8011747]
[1728807465002,0.285,2472.0,2471.9,10.60694021]
[1728807465220,0.285,2472.0,2471.9,10.17825905]
[1728807465520,0.285,2472.0,2471.9,10.60718284]
[1728807465738,0.285,2472.0,2471.9,9.33798267]
[1728807465880,0.285,2472.0,2471.9,9.22818013]
[1728807466087,0.285,2472.0,2471.9,10.4973803]
[1728807468728,0.285,2472.0,2471.9,9.22824399]
[1728807468929,0.285,2472.0,2471.9,10.92667865]
[1728807471532,0.285,2472.0,2471.9,9.22824399]
[1728807471837,0.285,2472.0,2471.9,10.92164992]
[1728807471984,0.285,2472.0,2471.9,11.34460579]
[1728807472441,0.285,2472.0,2471.9,11.34466341]
[1728807472605,0.285,2472.0,2471.9,11.34518557]
[1728807473102,0.285,2472.0,2471.9,9.22830161]
[1728807473525,0.285,2472.0,2471.9,11.34518557]
[1728807474562,0.285,2472.0,2471.9,12.74605656]
[1728807475110,0.285,2472.0,2471.9,11.34518557]
[1728807475315,0.285,2472.0,2471.9,9.22830161]
[1728807475516,0.285,2472.0,2471.9,12.74725441]
[1728807476050,0.285,2472.0,2471.9,12.62062533]
[1728807476263,0.285,2472.0,2471.9,12.74742255]
[1728807477008,0.285,2472.0,2471.9,10.62934074]
[1728807477206,0.285,2472.0,2471.9,10.20012733]
[1728807477413,0.285,2472.0,2471.9,10.50277612]
[1728807477648,0.285,2472.0,2471.9,10.32675739]
[1728807477856,0.285,2472.0,2471.9,10.62943461]
[1728807480018,0.285,2472.0,2471.9,10.62943446]
[1728807482540,0.285,2472.0,2471.9,10.62943328]
[1728807482877,0.285,2472.0,2471.9,10.50281377]
[1728807483052,0.285,2472.0,2471.9,10.32675605]
[1728807483632,0.285,2472.0,2471.9,10.62944241]
[1728807485837,0.285,2472.0,2471.9,11.41404241]
[1728807487550,0.285,2472.0,2471.9,11.41404196]
[1728807490292,0.285,2472.0,2471.9,10.98472733]
[1728807490502,0.285,2472.0,2471.9,11.413928]
[1728807500155,0.285,2472.0,2471.9,11.28730232]
[1728807500357,0.285,2472.0,2471.9,11.41392536]
[1728807501853,0.285,2472.0,2471.9,10.98472733]
[1728807502190,0.285,2472.0,2471.9,11.28713295]
[1728807502398,0.285,2472.0,2471.9,11.41374633]
[1728807505779,0.285,2472.0,2471.9,11.41374309]
[1728807506171,0.285,2472.0,2471.9,7.36827309]
[1728807506382,0.285,2472.0,2471.9,11.41374309]
[1728807507599,0.285,2472.0,2471.9,11.41374029]
[1728807513945,0.285,2472.0,2471.9,11.41380215]
[1728807516523,0.285,2472.0,2471.9,10.62920215]
[1728807517835,0.285,2472.0,2471.9,10.62927086]
[1728807521547,0.285,2472.0,2471.9,10.62937457]
[1728807523330,0.285,2472.0,2471.9,10.62937881]
[1728807523744,0.47250779,2472.2,2472.1,7.59514]
[1728807523940,0.47250779,2472.2,2472.1,11.12004755]
[1728807524168,0.85162519,2472.7,2472.2,7.0449]
[1728807524472,1.12866985,2472.6,2472.3,1.27667251]
[1728807524757,0.27704466,2472.6,2472.4,0.42925148]
[1728807524960,0.27704466,2472.6,2472.5,0.42925148]
[1728807525126,0.06413836,2472.6,2472.3,0.84742103]
[1728807525335,0.06413836,2472.6,2472.5,0.42928675]
[1728807525515,1.34157614,2472.6,2472.5,0.42928675]
[1728807525719,1.34157614,2472.6,2472.5,0.12663383]
[1728807525930,2.26312951,2472.6,2472.5,0.12663383]
[1728807526667,3.05702951,2472.6,2472.5,0.12663383]
[1728807528173,0.7769,2472.5,2472.2,0.30263024]
[1728807528377,0.7769,2472.4,2472.3,0.42927997]
[1728807528668,1.22970517,2472.4,2472.3,0.42927997]
[1728807528877,1.22970517,2472.4,2472.3,0.30263024]
[1728807529045,1.22970517,2472.4,2472.3,0.4292111]
[1728807530380,1.22970517,2472.4,2472.3,0.12665044]
[1728807530676,0.7769,2472.3,2471.9,3.0]
[1728807530843,0.7769,2472.3,2471.7,0.84742103]
[1728807530844,4.89517479,2472.2,2471.7,0.84742103]
[1728807531049,0.7769,2472.1,2472.0,0.30255036]
[1728807531228,0.84063859,2472.1,2472.0,0.12666415]
[1728807531432,0.84063859,2472.1,2471.8,0.30246189]
[1728807531684,0.7769,2472.0,2471.9,0.12667192]
[1728807531857,0.84057711,2472.0,2471.9,0.12667192]
[1728807532249,0.84057711,2472.0,2471.8,4.04562]
[1728807532451,0.84057711,2472.0,2471.9,3.0]
[1728807537143,0.84057711,2472.0,2471.7,3.42904465]
[1728807537298,0.84057711,2472.0,2471.7,3.30237081]
[1728807537589,0.84057711,2472.0,2471.7,3.42904465]
[1728807537767,0.5839762,2472.0,2471.7,3.0]
[1728807537955,0.7769,2471.9,2471.7,3.0]
[1728807538290,0.5839762,2472.0,2471.7,3.12667384]
[1728807538291,0.84012914,2471.8,2471.7,3.12667384]
[1728807538488,0.84012914,2471.8,2471.7,3.0]
[1728807540089,0.7769,2471.8,2471.7,3.0]
[1728807540295,0.84005991,2471.8,2471.7,3.0]
[1728807542514,0.84005991,2471.8,2471.7,7.04579]
[1728807542726,0.06315991,2471.8,2471.7,8.16761769]
[1728807543006,0.06315991,2471.8,2471.7,8.29428411]
[1728807544710,0.06315991,2471.8,2471.7,8.59600065]
[1728807545619,0.06315991,2471.8,2471.7,8.5959922]
[1728807545771,0.06315991,2471.8,2471.7,8.59599249]
[1728807546717,0.7769,2471.9,2471.8,7.04563]
[1728807546879,0.7769,2471.9,2471.8,7.17229642]
[1728807547079,0.83764864,2471.9,2471.8,7.17229642]
[1728807548011,0.06074864,2471.9,2471.8,8.40628783]
[1728807548318,0.7829,2472.1,2472.0,4.0453]
[1728807548677,0.84378473,2472.1,2472.0,4.0453]
[1728807552468,0.7829,2472.1,2472.0,4.0453]
[1728807552760,0.84354042,2472.1,2472.0,4.0453]
[1728807553362,0.84354042,2472.1,2471.9,7.04546]
[1728807557961,0.84354042,2472.1,2471.9,11.09081]
[1728807558379,1.63119055,2473.0,2472.5,3.0]
[1728807558667,0.7829,2473.0,2472.8,4.04397]
[1728807559460,0.7829,2473.0,2472.9,4.04383]
[1728807560872,0.84829055,2473.5,2473.0,3.0]
[1728807561023,0.7829,2473.5,2473.4,3.0]
[1728807561383,0.7829,2473.5,2473.3,3.0]
[1728807565140,0.7829,2473.5,2473.3,7.04313]
[1728807565540,0.7829,2473.5,2473.3,3.0]
[1728807565973,0.0452343,2473.4,2473.3,3.0]
[1728807566165,0.0452343,2473.4,2473.3,8.52968569]
[1728807566450,0.7829,2473.8,2473.3,4.48650569]
[1728807566641,0.7829,2473.8,2473.7,4.04252]
[1728807568707,0.1228332,2474.3,2473.7,4.04252]
[1728807568708,0.1228332,2474.3,2473.8,3.0]
[1728807569014,0.8214,2474.0,2473.9,3.0]
[1728807569975,0.8214,2474.0,2473.8,3.0]
[1728807570322,0.8214,2474.0,2473.9,3.0]
[1728807570917,0.8214,2474.0,2473.9,7.0422]
[1728807571501,0.84829055,2475.2,2474.3,0.8277]
[1728807571704,2.30790569,2475.4,2474.7,4.04075]
[1728807572012,1.48650569,2475.2,2474.7,4.04075]
[1728807573197,0.71958062,2475.3,2474.7,8.08151]
[1728807573198,2.20608631,2475.3,2474.7,8.08151]
[1728807573781,2.20608631,2475.3,2474.7,4.04075]
[1728807573985,1.48650569,2474.9,2474.6,3.0]
[1728807574428,0.8214,2475.0,2474.6,3.0]
[1728807574801,0.8214,2475.0,2474.4,7.04137]
[1728807575029,0.486176,2474.9,2474.4,7.04137]
[1728807575884,0.486176,2474.9,2474.4,3.0]
[1728807576212,4.8618,2475.0,2474.4,3.0]
[1728807577288,4.8618,2475.0,2474.3,0.8277]
[1728807577628,4.8618,2475.0,2474.3,3.0]
[1728807579793,4.8618,2475.0,2474.4,4.04136]
[1728807579794,0.8214,2475.0,2474.4,4.04136]
[1728807580029,1.711579,2475.0,2474.5,3.0]
[1728807581127,5.751999,2475.0,2474.3,3.0]
[1728807582430,0.03631103,2474.9,2474.3,3.0]
[1728807585403,4.07690103,2474.9,2474.3,3.0]
[1728807586133,4.07690103,2474.9,2474.3,7.04153]
[1728807586463,5.05979103,2474.9,2474.3,7.04153]
[1728807589640,1.01920103,2474.9,2474.3,7.04153]
[1728807589896,0.03631103,2474.9,2474.3,7.04153]
[1728807590164,4.07691103,2474.9,2474.3,3.0]
[1728807590326,4.07691103,2474.9,2474.3,7.04152]
[1728807591733,4.8404,2474.7,2474.1,7.04186]
[1728807592065,0.03595851,2474.6,2474.1,7.04186]
[1728807592223,0.92766836,2474.6,2474.1,7.04186]
[1728807592731,0.92766836,2474.6,2474.1,3.0]
[1728807592924,4.96872836,2474.6,2474.1,3.0]
[1728807593248,4.84072,2474.5,2473.9,7.04217]
[1728807593579,4.0414,2474.4,2473.9,3.0]
[1728807593944,0.03567113,2474.3,2473.9,3.0]
[1728807595065,0.7995,2474.1,2473.6,4.86309]
[1728807595269,0.7995,2474.1,2473.5,4.04284]
[1728807595437,0.03544208,2474.0,2473.5,4.04284]
[1728807596259,0.03544208,2474.0,2473.6,0.8205]
[1728807596565,0.7995,2474.2,2473.7,4.04251]
[1728807596727,1.33238171,2474.2,2473.8,3.0]
[1728807596928,0.03548166,2474.1,2473.8,3.0]
[1728807597176,0.03548166,2474.1,2473.6,3.8205]
[1728807597734,0.03548166,2474.1,2473.6,7.86314]
[1728807600352,0.03548166,2474.1,2473.6,3.0]
[1728807600885,0.03547193,2474.1,2473.6,3.0]
[1728807601099,0.03547193,2474.1,2473.6,7.04267]
[1728807604756,0.03547193,2474.1,2473.6,3.0]
[1728807605455,5.37410171,2474.2,2473.6,3.0]
[1728807605962,5.40956944,2474.2,2473.6,3.0]
[1728807606489,2.28483867,2474.0,2473.4,3.0]
[1728807606795,0.56834944,2474.2,2473.1,3.0]
[1728807606796,0.7995,2473.6,2473.1,3.0]
[1728807606963,6.32753867,2473.6,2473.0,0.41223333]
[1728807607154,2.28483867,2473.6,2472.9,5.52906867]
[1728807607353,4.04288,2473.5,2472.9,5.52906867]
[1728807607593,6.32754867,2473.6,2472.9,6.64942021]
[1728807607755,6.32752867,2473.6,2473.0,1.48533867]
[1728807607956,0.7995,2473.6,2473.1,1.48533867]
[1728807608193,0.7995,2473.6,2473.1,4.48533867]
[1728807608403,0.7995,2473.6,2473.1,7.04349]
[1728807609201,4.84222,2473.6,2473.0,3.0]
[1728807609862,0.7995,2473.6,2473.0,3.0]
[1728807610298,0.7995,2473.6,2473.0,7.04365]
[1728807610515,0.7995,2473.6,2473.0,8.30391098]
[1728807611486,0.7995,2473.6,2473.0,4.26026098]
[1728807612362,4.84219,2473.6,2473.0,4.26026098]
[1728807613890,0.7995,2473.6,2473.0,4.26026098]
[1728807614202,0.7995,2473.6,2473.0,8.30388098]
[1728807614567,0.7995,2473.6,2473.2,3.0]
[1728807615665,0.7995,2473.6,2473.0,8.30388098]
[1728807615865,0.7995,2473.6,2473.2,3.0]
[1728807619616,0.7995,2473.6,2473.0,4.26026098]
[1728807619767,0.7995,2473.6,2473.0,8.30390098]
[1728807621120,0.7995,2473.6,2473.3,3.0]
[1728807622806,0.7995,2473.6,2473.2,3.0]
[1728807628010,0.7995,2473.6,2473.2,7.04333]
[1728807628198,0.7995,2473.6,2473.2,7.9522431]
[1728807628400,0.7995,2473.6,2473.3,4.12398217]
[1728807629513,0.7743,2474.0,2473.3,4.12393217]
[1728807629700,0.7743,2474.0,2473.4,0.7795]
[1728807629901,0.7743,2474.0,2473.5,0.08084563]
[1728807631330,0.7743,2474.0,2473.6,1.48568708]
[1728807631548,0.7743,2474.0,2473.5,6.65258298]
[1728807631740,0.7743,2474.0,2473.5,5.1668959]
[1728807635511,0.7743,2474.0,2473.5,4.1240559]
[1728807635744,6.30203708,2474.0,2473.5,1.1240559]
[1728807635911,6.30203708,2474.0,2473.5,0.08084563]
[1728807636658,1.48568708,2473.9,2473.5,0.08084563]
[1728807637331,6.30203708,2474.0,2473.5,0.08084563]
[1728807637714,5.52790708,2473.9,2473.5,0.08084563]
[1728807638217,1.48568708,2473.9,2473.5,0.08084563]
[1728807638421,6.30201708,2474.0,2473.5,0.08084563]
[1728807638613,8.39677698,2474.0,2473.5,0.08084563]
[1728807640251,8.39677698,2474.0,2473.5,0.20743202]
[1728807641548,8.39677698,2474.0,2473.5,0.08084563]
[1728807644159,0.84829055,2473.9,2473.5,0.08084563]
[1728807644318,5.66463055,2474.0,2473.5,0.08084563]
[1728807644719,5.66465055,2474.0,2473.5,0.08084563]
[1728807645020,4.0422,2473.9,2473.5,0.08084563]
[1728807645227,4.89049055,2473.9,2473.5,0.08084563]
[1728807646265,0.84829055,2473.9,2473.5,1.56653271]
[1728807646425,0.84829055,2473.9,2473.5,2.53561384]
[1728807646627,0.84829055,2473.9,2473.5,6.57844384]
[1728807646829,0.84829055,2474.0,2473.7,1.48568708]
[1728807647025,0.84829055,2474.0,2473.7,0.08083909]
[1728807647227,0.88628089,2474.0,2473.7,1.56652617]
[1728807647452,0.84829055,2474.1,2473.8,1.48568708]
[1728807647762,0.84829055,2474.2,2473.7,7.0490479]
[1728807647925,0.88623882,2474.2,2473.8,1.48568708]
[1728807648131,0.84829055,2474.1,2473.7,7.0490479]
[1728807649757,0.84829055,2474.2,2473.9,2.25848708]
[1728807649978,0.84829055,2474.3,2474.0,0.22584871]
[1728807650198,0.84829055,2474.3,2473.9,2.25848708]
[1728807651023,4.88985055,2474.3,2473.9,2.25848708]
[1728807651237,4.88985055,2474.3,2473.9,0.7728]
[1728807651567,0.84829055,2474.2,2473.9,0.7728]
[1728807651929,4.88985055,2474.3,2473.9,0.7728]
[1728807652974,0.84829055,2474.2,2473.9,0.7728]
[1728807653676,0.84829055,2474.3,2474.0,4.48568708]
[1728807654087,0.84829055,2474.4,2474.0,4.48568708]
[1728807654388,0.84829055,2474.4,2474.0,3.0]
[1728807654594,0.84829055,2474.4,2474.0,4.48568708]
[1728807655178,0.84829055,2474.4,2474.2,1.48568708]
[1728807655413,0.84829055,2474.4,2474.3,2.25848708]
[1728807655592,0.84829055,2474.5,2474.3,2.25848708]
[1728807655879,0.84829055,2474.5,2474.3,0.7728]
[1728807656447,0.84829055,2474.5,2474.3,2.25848708]
[1728807657072,0.84829055,2474.5,2474.3,0.7728]
[1728807657269,0.84829055,2474.5,2474.3,2.25848708]
[1728807657474,0.84829055,2474.6,2474.4,1.48568708]
[1728807657862,0.84829055,2474.7,2474.3,6.97489766]
[1728807658193,0.84829055,2474.8,2474.4,8.52706708]
[1728807658543,0.84829055,2474.8,2474.4,4.48568708]
[1728807658781,0.84829055,2474.8,2474.4,3.0]
[1728807658961,0.79829055,2474.8,2474.4,3.0]
[1728807659362,0.79829055,2474.8,2474.4,4.48568708]
[1728807659973,4.04058,2474.9,2474.4,4.48568708]
[1728807660361,4.04058,2474.9,2474.4,4.04234664]
[1728807660765,5.31301583,2474.9,2474.4,5.52803372]
[1728807660965,4.04058,2474.9,2474.4,4.04234664]
[1728807661193,1.48568708,2474.8,2474.4,3.0]
[1728807661352,0.7853,2474.7,2474.4,3.0]
[1728807661870,6.09831583,2474.9,2474.4,7.04136]
[1728807663097,6.09831583,2474.9,2474.4,3.0]
[1728807663098,7.58400291,2474.9,2474.4,3.0]
[1728807663493,6.31156708,2474.9,2474.4,3.0]
[1728807663654,7.58400291,2474.9,2474.4,3.0]
[1728807664702,7.58400291,2474.9,2474.4,3.92999071]
[1728807664878,6.31156708,2474.9,2474.4,3.92999071]
[1728807668865,1.48568708,2474.8,2474.4,3.92999071]
[1728807669088,2.3326243,2474.8,2474.4,3.0]
[1728807669367,1.48568708,2474.5,2474.1,3.8288]
[1728807669583,2.25688708,2474.6,2474.1,3.8288]
[1728807671706,1.48568708,2474.5,2474.1,3.8288]
[1728807672410,1.48568708,2474.4,2474.1,0.8288]
[1728807672619,5.52691708,2474.5,2474.0,3.55]
[1728807672820,6.3738543,2474.5,2474.0,3.55]
[1728807673516,1.48568708,2474.4,2474.0,3.55]
[1728807673829,6.3738543,2474.5,2474.0,3.55]
[1728807674783,4.88816722,2474.5,2474.0,3.55]
[1728807675014,4.88816722,2474.5,2474.0,8.58268371]
[1728807675397,5.65919722,2474.6,2474.0,10.06837079]
[1728807676812,7.1448843,2474.6,2474.0,10.06837079]
[1728807677823,7.1448843,2474.6,2474.0,8.58268371]
[1728807678131,4.04124,2474.5,2474.0,3.0]
[1728807678306,10.4152343,2474.5,2474.0,3.0]
[1728807679337,6.3738643,2474.5,2474.0,3.0]
[1728807680305,4.88817722,2474.5,2474.0,3.0]
[1728807681127,8.92950722,2474.5,2474.0,3.0]
[1728807681838,4.04138,2474.4,2474.0,3.0]
[1728807682039,4.88817722,2474.5,2474.0,4.48568708]